bitfinex-derivatives/quotes_ETHF0:USTF0_20250902
["timestamp","ask_amount","ask_price","bid_price","bid_amount"]
[1756831362292,0.21234252,4298.6,4298.5,0.5117]
[1756831362484,0.42504252,4298.6,4298.5,0.2073]
[1756831362686,0.71614252,4298.6,4298.5,0.2073]
[1756831363790,0.21234252,4298.6,4298.5,0.723]
[1756831364391,0.00494252,4298.6,4298.5,0.723]
[1756831365287,0.21234252,4298.6,4298.5,0.723]
[1756831365488,0.71614252,4298.6,4298.5,0.4186]
[1756831365983,0.71614252,4298.6,4298.5,0.723]
[1756831366490,0.21234252,4298.6,4298.5,0.723]
[1756831366789,0.00494252,4298.6,4298.5,0.723]
[1756831369203,0.00494252,4298.6,4298.5,1.07454]
[1756831369800,0.00494252,4298.6,4298.5,0.8419]
[1756831370098,0.17,4298.9,4298.6,0.3044]
[1756831370297,0.17,4298.9,4298.8,3.9308]
[1756831371591,0.3774,4298.9,4298.8,4.1728]
[1756831371999,0.17,4298.9,4298.8,4.1728]
[1756831375094,0.2911,4299.4,4298.8,4.1728]
[1756831375095,0.2911,4300.4,4298.8,8.40542]
[1756831375297,0.58958538,4300.3,4300.2,0.723]
[1756831375501,3.2078,4300.7,4300.2,0.6606]
[1756831375798,3.4152,4300.7,4300.6,0.723]
[1756831376002,3.4152,4300.7,4300.6,0.965]
[1756831376198,3.2078,4300.7,4300.6,0.965]
[1756831376495,3.919,4300.7,4300.2,0.3044]
[1756831376701,3.6279,4300.7,4300.4,0.3044]
[1756831376902,0.2911,4300.6,4300.5,0.723]
[1756831377097,0.7112,4300.6,4300.5,0.723]
[1756831378792,0.7112,4300.6,4300.5,0.965]
[1756831379707,0.7112,4300.6,4300.5,0.2073]
[1756831379907,0.7112,4300.6,4300.4,0.242]
[1756831380106,0.1281,4300.5,4299.9,3.2078]
[1756831380302,0.7112,4300.0,4299.3,0.3044]
[1756831380605,0.7112,4300.0,4299.4,40.8]
[1756831380802,3.2078,4300.2,4299.8,0.2073]
[1756831381000,0.7112,4299.9,4299.8,0.2073]
[1756831383416,0.7112,4299.9,4299.5,0.3044]
[1756831383610,0.7112,4299.7,4299.6,0.965]
[1756831383912,3.919,4300.7,4300.6,0.2073]
[1756831384214,4.50691636,4300.7,4300.3,0.3044]
[1756831384417,0.2074,4300.1,4300.0,0.965]
[1756831384619,0.7112,4300.1,4299.9,0.242]
[1756831384916,0.7112,4300.1,4299.8,0.242]
[1756831385108,0.4201,4299.7,4299.6,0.242]
[1756831385302,0.7112,4299.7,4299.6,0.4493]
[1756831385507,0.2074,4299.7,4299.6,0.965]
[1756831386311,0.4985,4299.7,4299.6,0.965]
[1756831386818,0.2074,4299.7,4299.6,0.965]
[1756831387014,0.2911,4300.7,4300.0,0.3044]
[1756831387208,3.2078,4300.8,4300.6,0.723]
[1756831387415,0.2911,4301.0,4300.6,0.723]
[1756831387611,0.87985164,4300.9,4300.7,0.3044]
[1756831387813,0.87985164,4300.9,4300.8,0.723]
[1756831387814,0.4985,4300.9,4300.8,0.723]
[1756831388213,0.2911,4301.4,4300.9,0.3044]
[1756831388416,0.5886542,4301.3,4301.2,3.7235]
[1756831388613,3.2078,4302.1,4302.0,0.3044]
[1756831388807,4.21648335,4302.1,4301.7,0.242]
[1756831389007,1.08708335,4302.0,4301.9,0.723]
[1756831389217,0.79598335,4302.0,4301.9,0.723]
[1756831390919,1.08708335,4302.0,4301.9,0.723]
[1756831391112,0.3077,4301.9,4301.3,0.3024]
[1756831391318,3.2078,4302.1,4301.3,0.3024]
[1756831391319,0.5079,4301.4,4301.3,0.7031]
[1756831391513,0.5079,4301.4,4301.3,0.9451]
[1756831391820,3.2078,4302.1,4301.9,0.1966]
[1756831391821,0.7023,4302.0,4301.9,0.1966]
[1756831392020,1.2890474,4302.0,4301.9,0.1966]
[1756831392522,3.2078,4302.7,4301.9,0.4007]
[1756831392815,0.89424702,4302.6,4302.0,0.3024]
[1756831393008,3.2078,4302.7,4301.8,0.242]
[1756831393009,0.78674702,4302.5,4302.4,0.4007]
[1756831393213,0.5079,4302.5,4302.4,0.7031]
[1756831394016,0.7023,4302.5,4302.4,0.7031]
[1756831394210,0.7023,4302.6,4302.5,0.499]
[1756831394421,0.7023,4302.6,4302.5,0.7031]
[1756831395217,0.3077,4303.1,4302.5,0.7031]
[1756831395517,0.3077,4303.1,4302.6,0.3024]
[1756831395714,0.2002,4303.1,4303.0,0.7031]
[1756831395914,3.2078,4303.2,4303.1,0.3024]
[1756831396114,3.2078,4303.2,4303.1,0.7031]
[1756831396322,3.7157,4303.2,4303.1,0.7031]
[1756831396522,3.9101,4303.2,4303.1,0.4007]
[1756831397112,3.9101,4303.2,4303.1,0.1966]
[1756831397310,3.9101,4303.2,4303.1,0.7031]
[1756831397922,3.9101,4303.2,4303.0,0.242]
[1756831398119,0.1178,4303.0,4302.2,3.2078]
[1756831398321,0.3077,4302.2,4301.2,3.2078]
[1756831398622,0.3077,4301.8,4301.2,3.2078]
[1756831399022,0.23248001,4301.7,4301.2,3.2078]
[1756831399326,0.3077,4301.5,4301.2,3.5102]
[1756831399518,0.3077,4301.7,4301.2,3.5102]
[1756831399917,0.242,4301.8,4301.2,3.2078]
[1756831400117,0.58560595,4301.7,4301.2,3.2078]
[1756831400426,0.1178,4301.5,4301.2,3.2078]
[1756831401316,3.2078,4301.9,4301.2,3.2078]
[1756831401519,0.89361722,4301.8,4301.2,3.2078]
[1756831401720,0.3077,4301.8,4301.3,0.3024]
[1756831402325,0.3077,4301.8,4301.2,3.2078]
[1756831402721,0.3077,4301.8,4301.3,0.3024]
[1756831402927,0.3077,4301.8,4301.2,3.2078]
[1756831403528,0.3077,4301.8,4301.3,0.3024]
[1756831403827,0.3077,4301.8,4301.3,0.242]
[1756831404221,0.3077,4301.8,4301.4,0.3024]
[1756831404417,0.3077,4301.8,4301.3,0.242]
[1756831404719,3.2078,4301.9,4301.4,0.3024]
[1756831404916,0.3077,4301.7,4301.3,0.242]
[1756831405318,3.2078,4301.9,4301.3,0.242]
[1756831405521,0.3077,4301.7,4301.4,0.3024]
[1756831405724,3.2078,4301.9,4301.3,0.242]
[1756831405920,0.58672491,4301.8,4301.4,0.3024]
[1756831406125,0.3077,4301.6,4301.4,0.3024]
[1756831406322,0.5079,4301.6,4301.5,0.1966]
[1756831406533,0.3077,4301.5,4301.2,3.2078]
[1756831406725,0.7023,4301.3,4301.2,3.6464]
[1756831407029,0.7023,4301.3,4301.2,4.1529]
[1756831407230,0.5079,4301.3,4301.2,4.1529]
[1756831408432,0.5079,4301.3,4301.2,0.9451]
[1756831409531,0.2002,4301.3,4301.2,0.9451]
[1756831410030,0.5079,4301.3,4301.2,0.9451]
[1756831410236,0.7023,4300.7,4300.1,0.3024]
[1756831410422,0.7023,4300.7,4300.0,3.2078]
[1756831410423,0.3077,4300.6,4300.0,3.2078]
[1756831410728,0.3077,4301.3,4300.6,0.3024]
[1756831411037,0.3077,4301.3,4301.2,0.1966]
[1756831411038,0.7023,4301.3,4301.2,0.1966]
[1756831411237,1.28943852,4301.3,4301.2,0.1966]
[1756831411533,1.28943852,4301.3,4300.6,0.242]
[1756831411733,0.2002,4300.7,4300.6,0.9451]
[1756831412932,0.3077,4300.6,4300.0,3.2078]
[1756831413230,0.1178,4301.5,4298.0,1.16869]
[1756831413231,0.3077,4300.4,4299.5,3.5102]
[1756831413427,0.3077,4300.2,4299.5,3.5102]
[1756831414830,0.3077,4300.0,4299.5,3.5102]
[1756831415036,0.3077,4300.3,4299.6,0.242]
[1756831415229,0.3077,4300.1,4299.6,0.242]
[1756831415533,0.23256001,4300.4,4299.6,0.242]
[1756831415534,0.3077,4300.4,4299.6,0.242]
[1756831415735,0.3077,4300.2,4299.6,0.242]
[1756831415923,3.5155,4300.2,4299.6,0.242]
[1756831416130,0.58766871,4300.1,4299.6,0.242]
[1756831416330,0.7023,4299.7,4299.6,0.4386]
[1756831417536,0.7023,4299.7,4299.1,0.3024]
[1756831417832,0.3077,4299.6,4299.1,0.242]
[1756831418029,0.2002,4299.2,4299.1,0.4007]
[1756831418337,0.7023,4299.2,4299.1,0.1966]
[1756831418529,0.3077,4299.1,4298.9,0.242]
[1756831418731,0.7023,4299.0,4298.1,3.2078]
[1756831419034,0.3077,4299.0,4298.2,0.5444]
[1756831419236,0.3077,4299.4,4298.7,3.2078]
[1756831419429,0.3077,4299.6,4298.9,0.3024]
[1756831419631,0.58707841,4299.5,4298.9,0.3024]
[1756831419831,0.3077,4299.6,4298.9,0.3024]
[1756831420031,0.58707509,4299.5,4298.7,3.2078]
[1756831420235,0.3077,4299.4,4298.8,0.5444]
[1756831420837,3.2078,4299.7,4298.8,0.5444]
[1756831420838,0.3077,4299.6,4298.8,0.3024]
[1756831421032,0.3103,4299.1,4298.4,0.3024]
[1756831421233,0.3103,4299.1,4298.5,0.242]
[1756831421434,0.3103,4299.6,4298.6,3.2078]
[1756831421735,0.3103,4299.4,4298.7,0.3074]
[1756831422244,0.242,4300.3,4299.3,0.3074]
[1756831422434,0.3103,4300.1,4299.3,0.3074]
[1756831424040,3.5181,4300.1,4299.3,0.3074]
[1756831425543,0.3103,4299.9,4299.2,3.4498]
[1756831425743,0.1201,4300.0,4299.2,3.4498]
[1756831425937,0.3103,4299.9,4299.2,3.4498]
[1756831426444,0.1963,4299.3,4299.2,3.851]
[1756831426638,0.1963,4299.3,4299.2,0.9506]
[1756831427144,0.3103,4300.0,4299.2,0.9506]
[1756831427346,3.2078,4300.1,4299.2,0.9506]
[1756831427541,0.3103,4300.0,4299.2,0.9506]
[1756831427745,0.5066,4299.3,4299.2,0.7086]
[1756831428148,0.7152,4299.3,4298.7,3.2078]
[1756831428343,0.4049,4298.8,4298.2,3.2078]
[1756831428548,0.4304,4299.5,4298.2,3.2078]
[1756831428549,3.2078,4299.1,4298.2,3.2078]
[1756831429346,0.3103,4299.0,4298.3,0.3074]
[1756831431447,0.7152,4299.0,4298.9,0.1963]
[1756831433051,0.5523,4299.5,4298.9,0.7086]
[1756831433251,0.3103,4299.5,4298.9,0.7086]
[1756831433451,0.3103,4299.5,4299.0,0.3074]
[1756831433753,0.3103,4299.5,4299.4,0.7086]
[1756831433953,0.5066,4299.5,4299.4,0.7086]
[1756831434451,0.7152,4299.0,4298.9,3.4041]
[1756831434754,0.7152,4299.0,4298.9,3.7115]
[1756831435163,0.7152,4299.0,4298.9,3.9164]
[1756831435864,0.3103,4299.0,4298.9,3.2078]
[1756831436067,3.2078,4299.0,4298.0,3.5152]
[1756831436363,0.3103,4298.9,4298.1,0.242]
[1756831436660,0.3103,4298.9,4298.0,3.5152]
[1756831436865,0.3103,4298.4,4298.0,3.2078]
[1756831437065,0.3103,4298.4,4296.5,0.1268]
[1756831437066,3.5181,4298.5,4297.9,0.3074]
[1756831438265,3.5181,4298.5,4297.7,0.242]
[1756831438266,0.3103,4298.3,4297.7,0.242]
[1756831438462,0.58775604,4298.2,4297.5,3.5152]
[1756831438659,0.58780957,4298.1,4297.5,3.5152]
[1756831438854,0.3103,4297.9,4297.5,3.2078]
[1756831439064,3.5699,4298.5,4297.6,0.3074]
[1756831439363,0.89816843,4298.4,4297.6,0.3074]
[1756831439659,0.58786843,4298.3,4297.6,0.3074]
[1756831439865,0.3103,4298.1,4297.6,0.3074]
[1756831440063,3.5699,4298.5,4297.6,0.3074]
[1756831440064,0.3103,4297.9,4297.6,0.3074]
[1756831440260,0.23266,4298.4,4297.5,3.2078]
[1756831440562,0.58818161,4298.3,4297.5,3.2078]
[1756831440768,0.3103,4298.1,4297.5,3.5152]
[1756831440965,0.58818161,4298.0,4297.5,3.2078]
[1756831441261,0.1963,4297.4,4297.3,0.5037]
[1756831441571,0.7152,4297.4,4297.3,0.7086]
[1756831442069,0.3103,4297.8,4297.3,0.7086]
[1756831442260,0.3103,4297.6,4297.4,0.3074]
[1756831442467,0.5066,4297.6,4297.5,0.7086]
[1756831442661,0.7152,4297.6,4297.5,0.7086]
[1756831443264,1.30366861,4297.6,4297.5,0.7086]
[1756831444264,0.58846861,4297.6,4297.5,0.7086]
[1756831444468,0.3103,4298.7,4297.5,7.87469]
[1756831444664,0.5066,4298.7,4298.6,0.7086]
[1756831444971,1.09479233,4298.7,4298.6,0.7086]
[1756831445665,0.58819233,4298.7,4298.6,0.7086]
[1756831447271,3.5181,4299.6,4298.7,0.3074]
[1756831447474,1.30368086,4299.5,4299.4,0.1963]
[1756831448266,0.1963,4298.6,4298.5,3.9164]
[1756831449763,0.7152,4298.6,4298.5,0.7086]
[1756831449966,1.30380549,4298.6,4298.5,0.7086]
[1756831450363,0.1963,4298.1,4298.0,3.7115]
[1756831450677,0.99358725,4298.1,4297.5,3.2078]
[1756831450981,0.7152,4297.8,4297.7,0.7086]
[1756831451175,0.3143,4298.4,4297.7,0.7178]
[1756831451473,0.58865762,4298.3,4297.7,0.7178]
[1756831451674,0.2142,4297.8,4297.7,0.4012]
[1756831451975,0.5285,4297.8,4297.7,0.6432]
[1756831452176,3.2078,4298.5,4297.7,0.6432]
[1756831452373,0.3143,4298.3,4297.8,0.3166]
[1756831452573,1.00335559,4298.2,4298.1,0.2113]
[1756831452773,0.58825559,4298.2,4298.1,0.7302]
[1756831454079,1.31765559,4298.2,4298.1,0.7302]
[1756831455682,1.31765559,4298.2,4298.1,0.4136]
[1756831455878,0.3143,4298.1,4297.7,0.242]
[1756831456074,0.7294,4297.8,4297.7,0.4533]
[1756831456275,0.7294,4297.8,4297.7,0.7699]
[1756831456782,1.31812185,4297.8,4297.7,0.7699]
[1756831457483,1.31812185,4297.8,4297.7,0.5279]
[1756831457977,1.31812185,4297.8,4297.5,3.2078]
[1756831457978,0.4151,4297.6,4297.5,3.2078]
[1756831458180,0.7294,4297.6,4297.5,3.4191]
[1756831458876,0.7294,4297.6,4297.5,3.2078]
[1756831459278,0.7294,4297.6,4297.0,0.3166]
[1756831459484,0.3143,4297.0,4296.4,0.7302]
[1756831459782,0.58906893,4296.9,4296.8,0.4136]
[1756831459971,0.58906893,4296.9,4296.8,0.7302]
[1756831460170,0.3143,4297.3,4296.8,0.4136]
[1756831460375,0.2142,4296.9,4296.8,0.7302]
[1756831460575,0.7294,4296.9,4296.2,0.3166]
[1756831460775,1.00391105,4296.8,4296.7,0.2113]
[1756831460977,0.2142,4296.4,4296.3,0.6556]
[1756831461174,0.7294,4296.4,4296.3,0.4136]
[1756831461377,0.4151,4296.4,4295.9,0.3166]
[1756831461577,3.2078,4296.9,4295.8,0.5586]
[1756831461777,0.3143,4296.7,4295.8,0.5586]
[1756831461982,0.2142,4295.9,4295.8,0.9722]
[1756831462280,0.5285,4295.9,4295.8,0.7302]
[1756831462487,0.7294,4295.9,4295.8,0.4136]
[1756831462679,0.7294,4295.9,4295.8,0.7302]
[1756831463886,0.7294,4295.9,4295.3,0.3166]
[1756831464080,0.3143,4295.8,4295.4,0.5586]
[1756831464275,3.2078,4296.4,4295.4,0.6556]
[1756831464477,0.7294,4296.3,4296.2,0.2113]
[1756831465180,0.4151,4296.3,4295.9,0.3166]
[1756831465384,0.5285,4296.0,4295.9,0.5279]
[1756831465981,0.5285,4296.0,4295.9,0.7302]
[1756831466684,0.2142,4296.0,4295.9,0.7302]
[1756831466982,0.3143,4296.3,4296.0,0.3166]
[1756831467184,3.6229,4296.4,4296.3,0.2113]
[1756831467384,0.2142,4296.4,4296.3,0.7302]
[1756831467575,0.5285,4296.5,4296.4,0.3166]
[1756831467779,0.7294,4296.5,4296.4,0.7302]
[1756831467973,0.7294,4296.5,4296.4,0.4136]
[1756831468573,0.7294,4296.5,4296.4,0.7302]
[1756831470078,0.7294,4296.5,4296.4,0.4136]
[1756831470684,0.7294,4296.5,4296.4,0.7302]
[1756831471286,0.7294,4296.5,4296.4,0.2113]
[1756831472087,0.7294,4296.5,4296.4,0.5279]
[1756831472284,0.7294,4296.5,4296.4,0.2113]
[1756831472488,0.7294,4296.5,4295.9,0.242]
[1756831472785,0.3143,4296.4,4295.6,0.242]
[1756831472983,0.7294,4295.7,4295.6,0.9722]
[1756831473485,0.7294,4295.7,4295.6,0.7302]
[1756831473887,0.3143,4295.6,4295.1,3.2078]
[1756831474186,0.7294,4295.2,4295.1,3.4191]
[1756831474579,0.2142,4295.2,4295.1,3.938]
[1756831474783,0.2142,4295.2,4295.1,0.2113]
[1756831474784,0.7294,4295.2,4295.1,0.2113]
[1756831475391,0.7294,4295.2,4294.7,0.3166]
[1756831475782,3.2078,4295.4,4294.8,0.7302]
[1756831475783,0.4151,4294.9,4294.8,0.7302]
[1756831475988,0.7294,4294.9,4294.8,0.7302]
[1756831477686,3.2078,4295.4,4295.3,0.2113]
[1756831477887,3.9372,4295.4,4295.3,0.7302]
[1756831478993,3.2078,4295.4,4295.3,0.7302]
[1756831479387,3.2078,4295.9,4295.3,0.4136]
[1756831479586,0.3143,4295.8,4295.5,0.3166]
[1756831479792,0.3143,4295.8,4295.2,0.242]
[1756831479793,0.5285,4295.8,4295.7,0.4136]
[1756831480092,0.5285,4295.8,4295.7,0.7302]
[1756831480286,0.7294,4295.8,4295.7,0.7302]
[1756831480491,3.2078,4295.9,4295.8,0.3166]
[1756831480691,3.2078,4295.9,4295.8,0.7302]
[1756831480692,3.7363,4295.9,4295.8,0.7302]
[1756831480892,3.9372,4295.9,4295.8,0.7302]
[1756831481395,0.7294,4295.9,4295.8,0.7302]
[1756831482193,0.4151,4295.9,4295.0,3.5102]
[1756831482388,0.5146,4295.1,4295.0,3.9158]
[1756831482584,0.7262,4295.1,4295.0,4.1578]
[1756831482784,0.3161,4295.9,4295.1,0.3024]
[1756831482989,0.7262,4295.9,4295.8,0.199]
[1756831484589,0.7262,4295.9,4295.4,0.3024]
[1756831484795,0.3161,4295.8,4295.1,0.3024]
[1756831485096,0.7262,4295.2,4295.1,0.949]
[1756831485292,0.7262,4295.2,4295.1,0.4056]
[1756831486189,0.7262,4295.2,4295.1,0.708]
[1756831486796,3.2078,4295.6,4295.1,0.708]
[1756831486996,0.3161,4295.9,4295.2,0.3024]
[1756831487192,0.7262,4295.9,4295.8,0.199]
[1756831487399,1.31686439,4295.9,4295.3,0.3024]
[1756831487597,0.3161,4295.7,4295.1,0.3024]
[1756831487789,0.1985,4295.2,4295.1,0.5014]
[1756831487990,0.7262,4295.2,4295.1,0.199]
[1756831488795,0.7262,4295.2,4295.1,0.5014]
[1756831488995,0.7262,4295.2,4295.1,0.199]
[1756831490296,0.7262,4295.2,4294.7,0.3024]
[1756831490594,0.1985,4294.4,4294.3,3.9158]
[1756831490897,0.7262,4295.3,4295.2,0.199]
[1756831491100,1.3177829,4295.3,4294.4,0.23283]
[1756831491296,0.5915829,4295.2,4294.5,0.3024]
[1756831491501,0.7262,4295.1,4295.0,0.199]
[1756831491700,0.7262,4295.1,4295.0,0.708]
[1756831492496,3.5239,4295.6,4295.5,0.199]
[1756831492706,3.2078,4295.6,4295.5,0.708]
[1756831492998,3.2078,4296.1,4295.3,0.241]
[1756831493192,1.31775265,4296.0,4295.9,0.199]
[1756831493395,0.3161,4295.3,4294.8,4.0928]
[1756831493596,0.3161,4295.9,4294.9,0.3024]
[1756831493795,0.7262,4295.7,4295.6,0.199]
[1756831493997,0.1985,4295.7,4295.6,0.708]
[1756831494397,0.5146,4295.7,4295.6,0.708]
[1756831495505,0.4101,4295.3,4295.2,0.199]
[1756831495703,0.3161,4295.9,4295.2,0.708]
[1756831495902,0.59144138,4295.8,4295.2,0.4056]
[1756831496103,0.3161,4295.9,4295.3,0.3024]
[1756831496304,0.7262,4295.9,4295.8,0.199]
[1756831496504,1.31767858,4295.9,4295.8,0.708]
[1756831497304,1.31767858,4295.9,4295.8,0.4056]
[1756831497507,1.31767858,4295.9,4295.8,0.199]
[1756831497708,0.3161,4295.8,4295.1,0.178]
[1756831497906,0.7262,4295.2,4295.1,0.199]
[1756831498605,0.5146,4295.2,4295.1,0.708]
[1756831498801,3.2078,4295.6,4295.1,0.708]
[1756831499002,0.1985,4295.6,4295.5,0.708]
[1756831499207,0.5146,4295.6,4295.5,0.708]
[1756831499508,0.7262,4295.6,4295.5,0.708]
[1756831499705,0.7262,4295.6,4295.5,0.4056]
[1756831500008,0.7262,4295.6,4295.5,0.199]
[1756831500210,0.7262,4295.6,4295.5,0.5014]
[1756831500403,0.7262,4295.6,4295.1,0.3024]
[1756831500706,0.7262,4295.2,4295.1,0.44]
[1756831500901,0.5146,4295.9,4295.8,0.4056]
[1756831501106,3.934,4296.6,4296.5,0.199]
[1756831501303,0.59204547,4296.6,4296.5,0.708]
[1756831501607,3.2078,4297.1,4296.5,4.4056]
[1756831501809,3.6179,4297.1,4297.0,0.199]
[1756831502004,4.5260609,4297.1,4297.0,0.4056]
[1756831502207,3.2078,4297.1,4297.0,0.708]
[1756831502410,3.934,4297.1,4297.0,0.708]
[1756831503308,3.934,4297.1,4296.2,3.2078]
[1756831503614,0.5146,4295.8,4295.7,3.9158]
[1756831503804,0.5146,4296.3,4296.2,0.199]
[1756831504007,0.5146,4296.3,4296.2,0.708]
[1756831504210,3.2078,4296.6,4296.2,0.4056]
[1756831504414,0.5146,4296.5,4296.4,0.4056]
[1756831504612,3.2078,4296.6,4296.5,0.3024]
[1756831504812,3.2078,4296.6,4296.5,0.708]
[1756831505609,0.7262,4296.6,4296.3,0.3024]
[1756831505806,0.3161,4296.5,4296.3,0.3024]
[1756831506012,0.5146,4296.5,4296.4,0.708]
[1756831506216,0.1269,4296.5,4295.6,0.3024]
[1756831506513,0.7262,4295.8,4295.7,0.708]
[1756831506716,0.7262,4295.7,4295.6,0.199]
[1756831507014,0.4101,4295.3,4295.2,3.2078]
[1756831507215,0.7262,4295.3,4295.2,3.4068]
[1756831507406,0.7262,4295.3,4295.2,3.9158]
[1756831508011,0.1985,4295.3,4295.2,3.9158]
[1756831508417,0.7262,4295.3,4295.2,3.9158]
[1756831508607,0.7262,4295.3,4295.2,3.4068]
[1756831508805,0.7262,4295.3,4295.2,0.199]
[1756831509713,0.7262,4295.3,4294.7,3.5102]
[1756831509909,0.7262,4295.3,4295.2,0.199]
[1756831510115,0.7262,4295.3,4295.2,0.5014]
[1756831510315,0.1985,4295.3,4295.2,0.708]
[1756831510516,3.2078,4295.8,4295.3,0.3024]
[1756831510711,3.2078,4295.8,4295.6,0.199]
[1756831510712,0.7262,4295.7,4295.6,0.199]
[1756831511511,0.7262,4295.7,4294.7,3.2078]
[1756831511718,0.5235,4294.9,4294.8,0.9542]
[1756831512106,0.5235,4294.9,4294.8,0.7132]
[1756831512308,0.7184,4294.9,4294.6,0.00369307]
[1756831512808,0.7184,4294.8,4294.7,0.1975]
[1756831513010,0.2128,4294.8,4294.7,0.7132]
[1756831513212,0.7184,4294.7,4294.6,0.00369307]
[1756831513611,0.3107,4295.2,4294.6,0.40339307]
[1756831513924,0.1261,4297.5,4295.4,0.3997]
[1756831513925,0.5235,4295.5,4295.4,0.3997]
[1756831514120,0.5235,4295.5,4295.4,0.7132]
[1756831514514,0.7184,4295.5,4295.4,0.7132]
[1756831515915,3.2078,4295.8,4295.7,0.7132]
[1756831516121,3.7313,4295.8,4295.7,0.7132]
[1756831516324,3.9262,4295.8,4295.7,0.3997]
[1756831516625,3.2078,4296.3,4295.8,0.3135]
[1756831516818,3.2078,4296.3,4296.2,0.7132]
[1756831516819,0.2128,4296.3,4296.2,0.7132]
[1756831517019,3.2078,4296.8,4295.8,3.4488]
[1756831517020,3.2078,4296.8,4295.9,0.23277]
[1756831517211,3.9262,4296.8,4296.2,0.3135]
[1756831517411,0.2128,4295.9,4295.8,3.921]
[1756831517623,0.5235,4295.9,4295.8,4.162]
[1756831517923,0.7184,4295.9,4295.8,4.162]
[1756831518126,0.2128,4295.9,4295.8,4.162]
[1756831518728,0.7184,4295.9,4295.8,0.752]
[1756831519221,0.7184,4295.9,4295.8,0.9542]
[1756831519925,0.7184,4295.9,4295.8,0.6407]
[1756831520324,0.4077,4295.9,4295.7,0.241]
[1756831520527,0.5235,4295.8,4295.7,0.9542]
[1756831520822,3.2078,4296.3,4295.7,0.9542]
[1756831520823,3.4206,4296.3,4296.2,0.1975]
[1756831521020,3.9262,4296.3,4296.2,0.511]
[1756831521218,3.9262,4296.3,4296.2,0.7132]
[1756831522829,3.9262,4296.3,4295.8,0.3135]
[1756831522830,3.6155,4296.3,4295.8,0.3135]
[1756831523026,0.4077,4295.3,4295.2,3.7188]
[1756831523216,0.7184,4295.3,4295.2,3.9598]
[1756831523716,0.7184,4295.3,4295.2,3.4053]
[1756831524022,0.7184,4295.3,4295.2,0.7132]
[1756831524224,0.7184,4295.3,4295.2,0.6407]
[1756831524827,0.7184,4295.3,4295.2,0.3997]
[1756831525027,0.7184,4295.3,4295.2,0.7132]
[1756831525324,0.4077,4295.3,4294.7,3.5213]
[1756831525628,3.4206,4295.8,4295.7,0.3997]
[1756831525825,3.7313,4295.8,4295.7,0.7132]
[1756831526428,3.9262,4295.8,4295.2,3.2078]
[1756831526623,0.7184,4295.2,4295.1,0.4385]
[1756831526825,0.7184,4295.2,4295.1,0.9542]
[1756831527020,0.7184,4295.2,4295.1,0.3997]
[1756831527226,0.7184,4295.2,4295.1,0.241]
[1756831527420,0.7184,4295.2,4295.1,0.4385]
[1756831527824,0.7184,4295.2,4295.1,0.9542]
[1756831528326,0.7184,4295.2,4295.1,0.1975]
[1756831528532,0.3107,4295.1,4294.8,0.7132]
[1756831528832,0.7184,4295.7,4295.6,0.1975]
[1756831529641,3.2078,4295.8,4295.7,0.3135]
[1756831529932,0.3107,4296.0,4295.7,0.3997]
[1756831530130,0.5235,4295.9,4295.8,0.511]
[1756831530326,0.7184,4295.9,4295.8,0.511]
[1756831530529,0.7184,4295.9,4295.8,0.1975]
[1756831530929,3.2078,4296.4,4295.8,0.1975]
[1756831530930,0.3107,4296.3,4295.8,0.7132]
[1756831531131,0.3107,4296.3,4295.9,0.3135]
[1756831531332,0.3107,4296.3,4296.2,0.3135]
[1756831532429,3.5185,4296.9,4296.3,0.3135]
[1756831532634,0.3107,4296.9,4296.3,0.3135]
[1756831532836,0.3107,4297.3,4296.4,0.3135]
[1756831533437,3.2078,4296.8,4296.3,0.241]
[1756831533635,0.3107,4296.7,4296.3,0.241]
[1756831533835,0.7184,4296.4,4296.3,0.241]
[1756831534132,0.1261,4297.5,4296.4,0.3135]
[1756831534133,0.3107,4297.2,4296.4,0.3135]
[1756831534341,0.3107,4296.4,4296.2,3.2078]
[1756831534536,0.1261,4297.0,4296.1,0.241]
[1756831534537,0.7184,4296.2,4296.1,0.241]
[1756831534934,0.7184,4296.2,4295.4,3.2078]
[1756831534935,0.4077,4296.2,4295.4,3.5213]
[1756831535138,0.4077,4295.5,4295.4,3.2078]
[1756831535334,0.7184,4295.5,4295.4,3.2078]
[1756831535634,0.7184,4295.1,4295.0,0.4385]
[1756831536035,0.7184,4295.1,4295.0,0.752]
[1756831536234,0.7184,4295.1,4295.0,0.9542]
[1756831536447,0.3107,4295.1,4295.0,0.5545]
[1756831536641,0.3107,4295.1,4295.0,0.241]
[1756831537242,0.3107,4295.7,4294.6,0.31719307]
[1756831537644,0.3107,4295.7,4294.7,0.241]
[1756831538447,0.3107,4295.7,4294.8,0.3135]
[1756831538947,0.3107,4295.3,4294.8,0.9542]
[1756831539246,0.3107,4295.7,4294.9,0.3135]
[1756831540247,0.7184,4295.7,4295.6,0.1975]
[1756831540643,0.3107,4295.6,4294.8,0.5545]
[1756831540838,0.2128,4294.9,4294.8,0.511]
[1756831541043,0.7184,4294.9,4294.8,0.6407]
[1756831541343,0.7184,4294.9,4294.6,0.00369307]
[1756831541940,0.3133,4294.8,4294.6,0.00369307]
[1756831542142,3.2078,4295.3,4294.6,0.21489307]
[1756831542143,0.7385,4294.7,4294.6,0.21489307]